[Event "Championnat du monde jeunes U10"]
[Date "2024.11.23"]
[White "Zhu, Linxi"]
[Black "Kolodziejczyk, Boris"]
[WhiteElo "2100"]
[BlackElo "2115"]
[Round "8.3"]
[Result "1-0"]
[TimeControl "5400+30"]

1. e4 {[%clk 1:30:59]} 1... c5 {[%clk 1:30:50]} 2. d4 {[%clk 1:31:13]} 2... cxd4
{[%clk 1:30:52]} 3. Qxd4 {[%clk 1:31:36]} 3... Nc6 {[%clk 1:30:58]} 4. Qd3
{[%clk 1:31:53]} 4... g6 {[%clk 1:27:08]} 5. Nc3 {[%clk 1:32:15]} 5... Bg7
{[%clk 1:26:37]} 6. Nf3 {[%clk 1:32:38]} 6... d6 {[%clk 1:26:44]} 7. Be2 {[%clk
1:33:04]} 7... Nf6 {[%clk 1:26:46]} 8. O-O {[%clk 1:33:29]} 8... O-O {[%clk
1:26:56]} 9. Nd5 {[%clk 1:33:55]} 9... Nd7 {[%clk 1:23:07]} 10. c3 {[%clk
1:34:21]} 10... Nc5 {[%clk 1:23:02]} 11. Qc2 {[%clk 1:34:46]} 11... Bg4 {[%clk
1:21:05]} 12. Bg5 {[%clk 1:30:02]} 12... Rc8 {[%clk 1:19:05]} 13. h3 {[%clk
1:27:19]} 13... Bxf3 {[%clk 1:18:44]} 14. Bxf3 {[%clk 1:27:30]} 14... Ne6 {[%clk
1:18:24]} 15. Bh4 {[%clk 1:26:05]} 15... g5 {[%clk 1:11:43]} 16. Bg3 {[%clk
1:24:54]} 16... Be5 {[%clk 1:04:19]} 17. Bxe5 {[%clk 1:15:48]} 17... Nxe5 {[%clk
1:04:14]} 18. Bd1 Kh8 {[%clk 0:55:25]} 19. Bg4 {[%clk 1:06:35]} 19... Nxg4
{[%clk 0:48:54]} 20. hxg4 {[%clk 1:07:03]} 20... Qd7 {[%clk 0:41:07]} 21. Qd2
{[%clk 1:04:27]} 21... h6 {[%clk 0:37:31]} 22. g3 {[%clk 1:00:19]} 22... Nc5
{[%clk 0:33:59]} 23. f3 {[%clk 0:59:01]} 23... Kg7 {[%clk 0:33:47]} 24. Kg2
{[%clk 0:56:37]} 24... e6 {[%clk 0:33:49]} 25. Ne3 b5 {[%clk 0:32:43]} 26. Rh1
{[%clk 0:55:36]} 26... f6 {[%clk 0:31:58]} 27. Rad1 {[%clk 0:55:36]} 27... Rcd8
{[%clk 0:31:58]} 28. Rh5 {[%clk 0:55:15]} 28... a5 {[%clk 0:31:33]} 29. Qc2
{[%clk 0:54:21]} 29... Qa7 {[%clk 0:30:54]} 30. Qf2 {[%clk 0:46:44]} 30... Qb7
{[%clk 0:29:34]} 31. Qd2 {[%clk 0:43:22]} 31... Qc6 {[%clk 0:29:04]} 32. Qd4
{[%clk 0:43:11]} 32... Qb7 {[%clk 0:27:04]} 33. Rdh1 {[%clk 0:43:32]} 33... Rh8
{[%clk 0:25:06]} 34. Rxh6 {[%clk 0:43:49]} 34... Qe7 {[%clk 0:24:53]} 35. Rxh8
{[%clk 0:42:20]} 35... Rxh8 {[%clk 0:25:18]} 36. Rh5 {[%clk 0:42:33]} 36... Rxh5
{[%clk 0:19:21]} 37. gxh5 {[%clk 0:42:57]} 37... Na4 {[%clk 0:18:16]} 38. b3
{[%clk 0:42:44]} 38... Nc5 {[%clk 0:18:40]} 39. Ng4 {[%clk 0:43:05]} 39... Nd7
{[%clk 0:18:11]} 40. Qa7 {[%clk 0:42:03]} 40... f5 {[%clk 0:17:44]} 41. exf5
{[%clk 0:42:08]} 41... exf5 {[%clk 0:18:13]} 42. Ne3 {[%clk 0:42:16]} 42... Qe6
{[%clk 0:17:19]} 43. Qd4+ {[%clk 0:41:34]} 43... Kf8 {[%clk 0:15:33]} 44. Qh8+
{[%clk 0:30:38]} 44... Ke7 {[%clk 0:15:23]} 45. Qg7+ {[%clk 0:31:03]} 45... Kd8
{[%clk 0:15:49]} 46. Qxg5+ {[%clk 0:31:25]} 46... Kc7 {[%clk 0:16:18]} 47. h6
{[%clk 0:31:35]} 47... f4 {[%clk 0:15:45]} 48. Qxf4 {[%clk 0:31:50]} 48... Qg6
{[%clk 0:15:42]} 49. Nd5+ {[%clk 0:29:11]} 49... Kb7 {[%clk 0:15:45]} 50. Ne7
{[%clk 0:28:42]} 50... Qc2+ {[%clk 0:15:49]} 51. Kh3 {[%clk 0:29:11]} 51... Qd1
{[%clk 0:15:37]} 52. Ng6 {[%clk 0:24:58]} 52... Kc7 {[%clk 0:14:34]} 53. Kg4
{[%clk 0:23:27]} 53... Qb1 {[%clk 0:14:33]} 54. Qf5 {[%clk 0:23:05]} 54... Qh1
{[%clk 0:14:16]} 55. Nh4 {[%clk 0:21:48]} 55... Ne5+ {[%clk 0:14:33]} 56. Qxe5
{[%clk 0:20:26]} 56... dxe5 {[%clk 0:14:57]} 57. h7 {[%clk 0:20:56]} 57... b4
{[%clk 0:13:59]} 58. h8=Q {[%clk 0:21:17]} 58... e4 {[%clk 0:14:22]} 59. Qe5+
{[%clk 0:21:42]} 59... Kb6 {[%clk 0:14:46]} 60. cxb4 {[%clk 0:21:54]} 60... axb4
{[%clk 0:15:07]} 61. Qxe4 {[%clk 0:22:08]} 61... Qa1 {[%clk 0:15:09]} 62. Qxb4+
{[%clk 0:21:46]} 62... Ka6 {[%clk 0:15:39]} 63. Qc4+ {[%clk 0:21:40]} 63... Kb6
{[%clk 0:16:04]} 64. Nf5 {[%clk 0:21:37]} 64... Qxa2 {[%clk 0:16:23]} 65. Kh3
{[%clk 0:21:42]} 65... Qb1 {[%clk 0:16:43]} 66. Qe4 {[%clk 0:21:52]} 66... Qf1+
{[%clk 0:16:39]} 67. Kg4 {[%clk 0:22:17]} 67... Qh1 {[%clk 0:16:42]} 68. b4
{[%clk 0:22:33]} 1-0

[Variant "Standard"]
[Site "Europe Echecs"]

[Event "Championnat du monde jeunes U10"]
[Date "2024.11.23"]
[White "Xia, Joshua"]
[Black "Bolashakov, Nurali"]
[WhiteElo "2052"]
[BlackElo "2005"]
[Round "8.4"]
[Result "1-0"]
[TimeControl "5400+30"]

1. e4 {[%clk 1:30:59]} 1... c5 {[%clk 1:30:52]} 2. Nf3 {[%clk 1:31:26]} 2... d6
{[%clk 1:31:02]} 3. d4 {[%clk 1:31:49]} 3... cxd4 {[%clk 1:31:17]} 4. Nxd4
{[%clk 1:32:12]} 4... Nf6 {[%clk 1:31:23]} 5. Nc3 {[%clk 1:32:30]} 5... a6
{[%clk 1:31:15]} 6. g3 {[%clk 1:32:47]} 6... e5 {[%clk 1:30:32]} 7. Nde2 {[%clk
1:33:05]} 7... Be7 {[%clk 1:28:39]} 8. Be3 {[%clk 1:32:57]} 8... O-O {[%clk
1:24:55]} 9. Bg2 {[%clk 1:33:05]} 9... Be6 {[%clk 1:23:13]} 10. h3 {[%clk
1:32:07]} 10... Nbd7 {[%clk 1:19:07]} 11. g4 {[%clk 1:29:30]} 11... Rc8 {[%clk
1:14:26]} 12. g5 {[%clk 1:27:59]} 12... Nh5 {[%clk 1:11:20]} 13. Bf3 {[%clk
1:23:19]} 13... Bxg5 {[%clk 1:06:40]} 14. Bxg5 {[%clk 1:21:10]} 14... Qxg5
{[%clk 1:06:21]} 15. Rg1 {[%clk 1:21:01]} 15... Qh6 {[%clk 1:03:12]} 16. Qxd6
{[%clk 1:16:23]} 16... Nf4 {[%clk 0:56:34]} 17. Nxf4 {[%clk 1:01:16]} 17... Qxf4
{[%clk 0:56:48]} 18. Bg4 {[%clk 1:00:42]} 18... Rxc3 {[%clk 0:47:53]} 19. bxc3
{[%clk 0:59:24]} 19... Qxe4+ {[%clk 0:47:34]} 20. Be2 {[%clk 0:57:22]} 20...
Qxc2 {[%clk 0:46:04]} 21. Rg3 {[%clk 0:52:39]} 21... g6 {[%clk 0:33:09]} 22. Qb4
{[%clk 0:49:14]} 22... Rc8 {[%clk 0:26:53]} 23. Bd1 {[%clk 0:45:31]} 23... Qf5
{[%clk 0:18:40]} 24. Qxb7 {[%clk 0:36:42]} 24... Rc4 {[%clk 0:14:24]} 25. Bg4
{[%clk 0:32:11]} 25... Qf6 {[%clk 0:13:32]} 26. Rf3 {[%clk 0:30:57]} 26... Rf4
{[%clk 0:13:36]} 27. Rxf4 {[%clk 0:29:11]} 27... exf4 {[%clk 0:14:02]} 28. Qc8+
{[%clk 0:28:23]} 28... Kg7 {[%clk 0:14:25]} 29. O-O-O {[%clk 0:27:51]} 29... Nf8
{[%clk 0:09:56]} 30. Bxe6 {[%clk 0:24:12]} 30... Nxe6 {[%clk 0:10:22]} 31. Kb2
{[%clk 0:23:52]} 31... Qe5 {[%clk 0:10:01]} 32. Qxa6 {[%clk 0:23:16]} 32... Qc5
{[%clk 0:09:09]} 33. Rd2 {[%clk 0:21:13]} 33... Qh5 {[%clk 0:08:26]} 34. a4
{[%clk 0:19:42]} 34... Qf3 {[%clk 0:05:33]} 35. Qb5 {[%clk 0:19:25]} 35... Qe4
{[%clk 0:00:49]} 36. a5 {[%clk 0:17:52]} 36... Nc7 {[%clk 0:00:40]} 37. Qb6
{[%clk 0:17:24]} 37... Ne6 {[%clk 0:00:33]} 38. a6 {[%clk 0:16:48]} 38... Qa4
{[%clk 0:00:35]} 39. a7 {[%clk 0:16:45]} 39... Kh6 {[%clk 0:00:34]} 40. Qb8
{[%clk 0:16:13]} 40... Nc7 {[%clk 0:00:33]} 41. Qxc7 {[%clk 0:16:23]} 41... Qb5+
{[%clk 0:01:00]} 42. Kc1 {[%clk 0:16:19]} 42... Qa4 {[%clk 0:01:20]} 43. Rd4
{[%clk 0:15:55]} 43... Qa3+ {[%clk 0:01:07]} 44. Kc2 {[%clk 0:16:06]} 44... Qa2+
{[%clk 0:01:33]} 45. Kd3 {[%clk 0:16:23]} 45... Qb1+ {[%clk 0:01:53]} 46. Kc4
{[%clk 0:16:32]} 46... Qa2+ {[%clk 0:02:15]} 47. Kb5 {[%clk 0:16:14]} 47... Qb2+
{[%clk 0:02:07]} 48. Rb4 {[%clk 0:16:25]} 48... Qe2+ {[%clk 0:02:33]} 49. c4
{[%clk 0:16:38]} 49... Qa2 {[%clk 0:02:50]} 50. Qa5 {[%clk 0:16:39]} 50... Qxa5+
{[%clk 0:03:09]} 51. Kxa5 {[%clk 0:17:06]} 51... f3 {[%clk 0:03:33]} 52. a8=Q
{[%clk 0:17:31]} 52... g5 {[%clk 0:03:53]} 53. Qc6+ {[%clk 0:17:50]} 53... Kh5
{[%clk 0:04:21]} 54. Qxf3+ {[%clk 0:18:06]} 54... Kh4 {[%clk 0:04:46]} 55. Qg4#
{[%clk 0:18:33]} 1-0

[Variant "Standard"]
[Site "Europe Echecs"]

[Event "Championnat du monde jeunes U10"]
[Date "2024.11.23"]
[White "Nguyen Quang Anh"]
[Black "Zuo, Junyu"]
[WhiteElo "1889"]
[BlackElo "2120"]
[Round "8.5"]
[Result "1-0"]
[TimeControl "5400+30"]

1. d4 {[%clk 1:30:52]} 1... Nf6 {[%clk 1:30:36]} 2. c4 {[%clk 1:30:54]} 2... e6
{[%clk 1:30:58]} 3. Nc3 {[%clk 1:30:47]} 3... Bb4 {[%clk 1:31:05]} 4. f3 {[%clk
1:30:30]} 4... c5 {[%clk 1:30:47]} 5. d5 {[%clk 1:29:53]} 5... d6 {[%clk
1:30:59]} 6. e4 {[%clk 1:29:35]} 6... b5 {[%clk 1:30:52]} 7. cxb5 exd5 {[%clk
1:28:04]} 8. exd5 {[%clk 1:26:01]} 8... O-O {[%clk 1:28:17]} 9. Bd3 {[%clk
1:20:01]} 9... Bb7 {[%clk 1:12:06]} 10. Bg5 {[%clk 1:14:51]} 10... Nbd7 {[%clk
1:03:44]} 11. Ne2 {[%clk 1:07:17]} 11... Qb6 {[%clk 1:00:31]} 12. Bc4 {[%clk
1:01:25]} 12... Ne5 {[%clk 0:56:29]} 13. b3 {[%clk 1:00:08]} 13... Qa5 {[%clk
0:30:26]} 14. Rc1 {[%clk 0:57:21]} 14... Nxc4 {[%clk 0:24:15]} 15. bxc4 {[%clk
0:57:27]} 15... Bxc3+ {[%clk 0:22:52]} 16. Nxc3 {[%clk 0:50:55]} 16... Rfe8+
{[%clk 0:23:17]} 17. Kf2 {[%clk 0:50:35]} 17... Nd7 {[%clk 0:22:40]} 18. Ne4
{[%clk 0:49:01]} 18... Qc7 {[%clk 0:14:13]} 19. Bf4 {[%clk 0:48:30]} 19... Ne5
{[%clk 0:14:18]} 20. Bxe5 {[%clk 0:48:53]} 20... Rxe5 {[%clk 0:14:40]} 21. Qd2
{[%clk 0:48:30]} 21... a6 {[%clk 0:12:28]} 22. a4 {[%clk 0:46:45]} 22... axb5
{[%clk 0:12:25]} 23. axb5 {[%clk 0:47:06]} 23... Ra4 {[%clk 0:05:53]} 24. Rhe1
{[%clk 0:43:20]} 24... Bc8 {[%clk 0:04:42]} 25. Nxd6 {[%clk 0:38:23]} 25... Rxe1
{[%clk 0:03:49]} 26. Rxe1 {[%clk 0:38:15]} 26... Bd7 {[%clk 0:04:08]} 27. Qf4
{[%clk 0:36:58]} 27... f6 {[%clk 0:03:53]} 28. Re7 {[%clk 0:36:44]} 28... Ra2+
{[%clk 0:02:40]} 29. Kg3 {[%clk 0:36:53]} 29... Qd8 {[%clk 0:02:43]} 30. Qe3
{[%clk 0:36:32]} 30... h5 {[%clk 0:01:55]} 31. h4 {[%clk 0:34:37]} 31... Bg4
{[%clk 0:01:02]} 32. Re8+ {[%clk 0:34:59]} 32... Qxe8 {[%clk 0:01:17]} 33. Qxe8+
{[%clk 0:35:21]} 33... Kh7 {[%clk 0:01:45]} 34. fxg4 {[%clk 0:35:39]} 34... hxg4
{[%clk 0:02:07]} 35. b6 {[%clk 0:35:47]} 35... Rb2 {[%clk 0:02:31]} 36. b7
{[%clk 0:36:12]} 36... Rb3+ {[%clk 0:02:59]} 37. Kxg4 {[%clk 0:36:16]} 37... f5+
{[%clk 0:03:26]} 38. Nxf5 {[%clk 0:36:35]} 38... Rxb7 {[%clk 0:03:47]} 39. d6
{[%clk 0:36:54]} 1-0

[Variant "Standard"]
[Site "Europe Echecs"]

[Event "Championnat du monde jeunes U10"]
[Date "2024.11.23"]
[White "Zabelin, Platon"]
[Black "Ilko-Toth, Andras"]
[WhiteElo "1870"]
[BlackElo "2115"]
[Round "8.6"]
[Result "1/2-1/2"]
[TimeControl "5400+30"]

1. d4 {[%clk 1:30:04]} 1... d5 {[%clk 1:30:54]} 2. c4 {[%clk 1:30:28]} 2... e6
{[%clk 1:31:22]} 3. Nf3 {[%clk 1:30:51]} 3... a6 {[%clk 1:31:42]} 4. Bg5 {[%clk
1:31:16]} 4... Be7 {[%clk 1:31:51]} 5. Bxe7 {[%clk 1:31:41]} 5... Nxe7 {[%clk
1:31:45]} 6. Nbd2 {[%clk 1:29:12]} 6... O-O {[%clk 1:29:12]} 7. g3 {[%clk
1:28:49]} 7... Nd7 {[%clk 1:25:01]} 8. Bg2 {[%clk 1:27:38]} 8... b6 {[%clk
1:22:07]} 9. O-O {[%clk 1:24:09]} 9... Bb7 {[%clk 1:22:30]} 10. Rc1 {[%clk
1:17:44]} 10... Rb8 {[%clk 1:11:35]} 11. Re1 {[%clk 1:16:50]} 11... c5 {[%clk
0:49:44]} 12. e4 {[%clk 1:13:58]} 12... dxe4 {[%clk 0:42:00]} 13. Nxe4 {[%clk
1:13:52]} 13... Bxe4 {[%clk 0:42:26]} 14. Rxe4 {[%clk 1:14:18]} 14... Nf6 {[%clk
0:42:54]} 15. Re3 {[%clk 1:13:15]} 15... Nf5 {[%clk 0:40:31]} 16. Rd3 {[%clk
1:13:21]} 16... Nxd4 {[%clk 0:36:46]} 17. Nxd4 {[%clk 1:13:34]} 17... cxd4
{[%clk 0:37:14]} 18. Rxd4 {[%clk 1:13:59]} 18... Qe7 {[%clk 0:32:38]} 19. Qd2
{[%clk 1:03:37]} 19... h6 {[%clk 0:27:29]} 20. b3 {[%clk 0:52:50]} 20... Rfc8
{[%clk 0:24:00]} 21. h3 {[%clk 0:37:08]} 21... Rc7 {[%clk 0:20:30]} 22. Rd1
{[%clk 0:36:11]} 22... a5 {[%clk 0:18:35]} 23. Rd8+ {[%clk 0:34:01]} 23... Rxd8
{[%clk 0:18:22]} 24. Qxd8+ {[%clk 0:34:28]} 24... Qxd8 {[%clk 0:18:40]} 25.
Rxd8+ {[%clk 0:34:50]} 25... Kh7 {[%clk 0:19:03]} 26. Rd6 {[%clk 0:34:29]} 26...
Nd7 {[%clk 0:19:03]} 27. a3 {[%clk 0:33:24]} 27... g6 {[%clk 0:18:03]} 28. b4
{[%clk 0:29:43]} 28... Kg7 {[%clk 0:14:28]} 29. c5 {[%clk 0:27:47]} 29... axb4
{[%clk 0:11:36]} 30. cxb6 {[%clk 0:25:10]} 30... Rc1+ {[%clk 0:09:12]} 31. Kh2
{[%clk 0:25:23]} 31... bxa3 {[%clk 0:09:01]} 32. Rxd7 {[%clk 0:24:55]} 32... a2
{[%clk 0:09:26]} 33. b7 {[%clk 0:25:17]} 33... Rb1 {[%clk 0:09:44]} 34. b8=Q
{[%clk 0:25:13]} 34... Rxb8 {[%clk 0:10:00]} 35. Ra7 {[%clk 0:25:35]} 35... Rb2
{[%clk 0:10:23]} 36. f4 {[%clk 0:24:01]} 36... Kf6 {[%clk 0:10:26]} 37. g4
{[%clk 0:23:25]} 37... g5 {[%clk 0:08:56]} 38. fxg5+ {[%clk 0:23:03]} 38... hxg5
{[%clk 0:09:17]} 39. Ra5 {[%clk 0:21:55]} 39... Ke7 {[%clk 0:08:39]} 40. Kg3
{[%clk 0:21:30]} 40... Kd6 {[%clk 0:08:01]} 41. Be4 {[%clk 0:18:40]} 41... Kc7
{[%clk 0:07:26]} 42. Ra6 {[%clk 0:18:51]} 42... Kd7 {[%clk 0:07:20]} 43. h4
{[%clk 0:16:58]} 43... Rb3+ {[%clk 0:06:40]} 44. Kg2 {[%clk 0:16:03]} 44... gxh4
{[%clk 0:05:32]} 45. Rxa2 {[%clk 0:16:11]} 45... Rg3+ {[%clk 0:05:52]} 46. Kf2
{[%clk 0:13:48]} 46... Rxg4 {[%clk 0:06:11]} 47. Ra7+ {[%clk 0:14:00]} 47... Ke8
{[%clk 0:05:53]} 48. Bf3 {[%clk 0:13:53]} 48... Rf4 {[%clk 0:05:30]} 49. Ke3
{[%clk 0:13:54]} 49... Rf6 {[%clk 0:04:42]} 50. Ra8+ {[%clk 0:14:16]} 50... Ke7
{[%clk 0:05:00]} 51. Rh8 {[%clk 0:14:43]} 51... Rf5 {[%clk 0:04:46]} 52. Ke4
1/2-1/2

[Variant "Standard"]
[Site "Europe Echecs"]

[Event "Championnat du monde jeunes U10"]
[Date "2024.11.23"]
[White "Mulay, Vivan Prakash"]
[Black "Shangin, Lev"]
[WhiteElo "1823"]
[BlackElo "2056"]
[Round "8.7"]
[Result "1-0"]
[TimeControl "5400+30"]

1. c4 {[%clk 1:30:43]} 1... e5 {[%clk 1:30:21]} 2. g3 {[%clk 1:30:58]} 2... Nf6
{[%clk 1:27:34]} 3. Bg2 {[%clk 1:31:12]} 3... d5 {[%clk 1:22:32]} 4. cxd5 {[%clk
1:31:36]} 4... Nxd5 {[%clk 1:22:34]} 5. Nc3 {[%clk 1:31:55]} 5... Nb6 {[%clk
1:21:34]} 6. Nf3 {[%clk 1:32:19]} 6... Nc6 {[%clk 1:21:32]} 7. O-O {[%clk
1:32:37]} 7... Be7 {[%clk 1:20:25]} 8. d3 {[%clk 1:31:55]} 8... O-O {[%clk
1:20:09]} 9. a3 {[%clk 1:32:20]} 9... Re8 {[%clk 1:19:28]} 10. b4 {[%clk
1:32:16]} 10... Bf8 {[%clk 1:18:17]} 11. Bb2 {[%clk 1:31:56]} 11... a5 {[%clk
1:16:34]} 12. b5 {[%clk 1:31:27]} 12... Nd4 {[%clk 1:16:06]} 13. Nd2 {[%clk
1:31:24]} 13... c6 {[%clk 1:15:41]} 14. bxc6 {[%clk 1:27:56]} 14... Nxc6 {[%clk
1:16:10]} 15. Rc1 {[%clk 1:27:48]} 15... a4 {[%clk 1:16:37]} 16. Nce4 {[%clk
1:21:08]} 16... Ra5 {[%clk 1:17:06]} 17. Nc4 {[%clk 1:17:01]} 17... Nxc4 {[%clk
1:17:32]} 18. dxc4 {[%clk 1:07:03]} 18... Qb6 {[%clk 1:08:50]} 19. Rb1 {[%clk
1:01:37]} 19... Qc7 {[%clk 1:06:41]} 20. Nc3 {[%clk 1:00:04]} 20... Nd4 {[%clk
0:58:12]} 21. e3 {[%clk 0:50:18]} 21... Ne6 {[%clk 0:49:39]} 22. Nxa4 {[%clk
0:45:27]} 22... Qxc4 {[%clk 0:46:02]} 23. Nb6 {[%clk 0:45:22]} 23... Qa6 {[%clk
0:45:14]} 24. Nd5 {[%clk 0:31:40]} 24... f6 {[%clk 0:38:53]} 25. Qb3 {[%clk
0:25:32]} 25... Kh8 {[%clk 0:34:49]} 26. Rfd1 {[%clk 0:22:26]} 26... Rb5 {[%clk
0:22:09]} 27. Qa2 {[%clk 0:21:28]} 27... Ra5 {[%clk 0:21:30]} 28. Qb3 {[%clk
0:17:17]} 28... Qa7 {[%clk 0:17:05]} 29. Nb6 {[%clk 0:16:00]} 29... Nc5 {[%clk
0:15:49]} 30. Qf7 {[%clk 0:15:51]} 1-0

[Variant "Standard"]
[Site "Europe Echecs"]

[Event "Championnat du monde jeunes U10"]
[Date "2024.11.23"]
[White "Tulegen, Ramazan"]
[Black "Filipovs, Sergejs"]
[WhiteElo "1818"]
[BlackElo "2012"]
[Round "8.8"]
[Result "1/2-1/2"]
[TimeControl "5400+30"]

1. e4 {[%clk 1:30:53]} 1... c5 {[%clk 1:30:56]} 2. Nf3 {[%clk 1:31:09]} 2... e6
{[%clk 1:31:20]} 3. d4 {[%clk 1:31:27]} 3... cxd4 {[%clk 1:31:44]} 4. Nxd4
{[%clk 1:31:47]} 4... Nf6 {[%clk 1:32:07]} 5. Nc3 {[%clk 1:32:10]} 5... Nc6
{[%clk 1:32:31]} 6. a3 {[%clk 1:30:33]} 6... Be7 {[%clk 1:31:11]} 7. Nxc6 {[%clk
1:25:14]} 7... bxc6 {[%clk 1:31:36]} 8. Bd3 {[%clk 1:25:36]} 8... e5 {[%clk
1:31:02]} 9. O-O {[%clk 1:25:43]} 9... O-O {[%clk 1:31:26]} 10. Bg5 {[%clk
1:22:23]} 10... d6 {[%clk 1:27:55]} 11. h3 {[%clk 1:20:16]} 11... Be6 {[%clk
1:26:37]} 12. Qe2 {[%clk 1:14:49]} 12... Qc7 {[%clk 1:24:33]} 13. b4 {[%clk
1:09:50]} 13... d5 {[%clk 1:21:03]} 14. f4 {[%clk 1:02:28]} 14... Qb6+ {[%clk
1:07:24]} 15. Qf2 {[%clk 0:59:21]} 15... Qxf2+ {[%clk 1:07:08]} 16. Rxf2 {[%clk
0:58:22]} 16... h6 {[%clk 1:02:09]} 17. Bxf6 {[%clk 0:56:39]} 17... Bxf6 {[%clk
1:02:35]} 18. f5 {[%clk 0:52:45]} 18... Bd7 {[%clk 1:02:34]} 19. Rd1 {[%clk
0:52:15]} 19... d4 {[%clk 1:02:23]} 20. Na4 {[%clk 0:50:44]} 20... Be7 {[%clk
1:02:24]} 21. Nb2 {[%clk 0:49:16]} 21... f6 {[%clk 0:56:25]} 22. c4 {[%clk
0:39:16]} 22... a5 {[%clk 0:55:22]} 23. c5 {[%clk 0:37:29]} 23... axb4 {[%clk
0:55:23]} 24. axb4 {[%clk 0:37:52]} 24... Rfb8 {[%clk 0:54:51]} 25. Bc4+ {[%clk
0:37:09]} 25... Kf8 {[%clk 0:55:15]} 26. Nd3 {[%clk 0:37:26]} 26... Ra3 {[%clk
0:53:37]} 27. Rb2 {[%clk 0:34:14]} 27... Rc3 {[%clk 0:50:55]} 28. Be6 {[%clk
0:24:59]} 28... Bxe6 {[%clk 0:50:09]} 29. fxe6 {[%clk 0:25:20]} 29... Ra3 {[%clk
0:50:13]} 30. Rbb1 {[%clk 0:20:36]} 30... Bd8 {[%clk 0:49:22]} 31. b5 Rxb5
{[%clk 0:48:58]} 32. Rxb5 {[%clk 0:16:55]} 32... cxb5 {[%clk 0:49:25]} 33. Nb4
{[%clk 0:17:12]} 33... Be7 {[%clk 0:47:37]} 34. Nd5 {[%clk 0:17:05]} 34... Bxc5
{[%clk 0:46:09]} 35. Rc1 {[%clk 0:15:40]} 35... Rc3 {[%clk 0:46:35]} 36. Ra1
{[%clk 0:14:38]} 36... Ra3 {[%clk 0:44:49]} 37. Rc1 {[%clk 0:14:57]} 37... Rc3
{[%clk 0:45:15]} 38. Ra1 {[%clk 0:14:08]} 38... Ra3 {[%clk 0:44:45]} 39. Rc1
{[%clk 0:10:03]} 39... Rc3 {[%clk 0:45:10]} 1/2-1/2

[Variant "Standard"]
[Site "Europe Echecs"]

[Event "Championnat du monde jeunes U10"]
[Date "2024.11.23"]
[White "Anand, Tsogtbileg"]
[Black "Ramesan, Raunak Amit"]
[WhiteElo "1974"]
[BlackElo "1802"]
[Round "8.9"]
[Result "1-0"]
[TimeControl "5400+30"]

1. e4 {[%clk 1:30:30]} 1... e5 {[%clk 1:30:55]} 2. Nf3 {[%clk 1:29:57]} 2... Nc6
{[%clk 1:31:18]} 3. Bb5 {[%clk 1:29:58]} 3... a6 {[%clk 1:31:41]} 4. Bxc6 {[%clk
1:30:00]} 4... dxc6 {[%clk 1:32:03]} 5. O-O {[%clk 1:30:00]} 5... Bd6 {[%clk
1:26:01]} 6. d4 {[%clk 1:29:08]} 6... exd4 {[%clk 1:25:46]} 7. Qxd4 {[%clk
1:29:32]} 7... f6 {[%clk 1:20:43]} 8. Be3 {[%clk 1:28:39]} 8... Be6 {[%clk
1:18:13]} 9. Nbd2 {[%clk 1:26:40]} 9... Ne7 {[%clk 1:13:39]} 10. Qc3 {[%clk
1:23:48]} 10... O-O {[%clk 1:11:28]} 11. Nc4 {[%clk 1:22:59]} 11... Ng6 {[%clk
1:04:03]} 12. Rad1 {[%clk 1:14:58]} 12... Qe7 {[%clk 0:56:52]} 13. Nxd6 {[%clk
1:03:07]} 13... cxd6 {[%clk 0:57:10]} 14. Nd4 {[%clk 1:03:32]} 14... Rfe8 {[%clk
0:48:24]} 15. Rfe1 {[%clk 1:01:01]} 15... Rad8 {[%clk 0:46:03]} 16. f3 {[%clk
0:55:56]} 16... d5 {[%clk 0:41:31]} 17. Nxe6 {[%clk 0:52:01]} 17... Qxe6 {[%clk
0:41:55]} 18. Bb6 {[%clk 0:52:20]} 18... Rd7 {[%clk 0:40:18]} 19. Qb3 {[%clk
0:44:58]} 19... Qf7 {[%clk 0:33:09]} 20. Rd4 {[%clk 0:36:48]} 20... Rde7 {[%clk
0:30:47]} 21. Bc5 {[%clk 0:36:29]} 21... Re5 {[%clk 0:29:10]} 22. Bd6 {[%clk
0:30:06]} 22... R5e6 {[%clk 0:29:20]} 23. Ba3 {[%clk 0:29:25]} 23... f5 {[%clk
0:27:40]} 24. Rf1 {[%clk 0:23:51]} 24... Nf4 {[%clk 0:22:43]} 25. Kh1 {[%clk
0:18:41]} 25... Rh6 {[%clk 0:16:16]} 26. Qe3 {[%clk 0:14:52]} 26... Ne6 {[%clk
0:16:17]} 27. Rdd1 {[%clk 0:14:19]} 27... f4 {[%clk 0:15:22]} 28. Qg1 {[%clk
0:07:50]} 28... dxe4 {[%clk 0:13:49]} 29. fxe4 {[%clk 0:07:19]} 29... Ng5 {[%clk
0:13:45]} 30. Rd3 {[%clk 0:04:23]} 30... Nxe4 {[%clk 0:12:59]} 31. g3 {[%clk
0:04:29]} 31... Rf6 {[%clk 0:11:22]} 32. g4 {[%clk 0:01:26]} 32... Qe6 {[%clk
0:07:52]} 33. b3 {[%clk 0:00:52]} 33... c5 {[%clk 0:05:39]} 34. Bb2 {[%clk
0:00:46]} 34... Qc6 {[%clk 0:04:52]} 35. Qg2 {[%clk 0:00:37]} 35... Rfe6 {[%clk
0:03:36]} 36. Kg1 {[%clk 0:00:40]} 36... Qc7 {[%clk 0:02:51]} 37. Rdf3 {[%clk
0:00:39]} 37... Rf8 {[%clk 0:02:18]} 38. h4 {[%clk 0:00:42]} 38... Ng3 {[%clk
0:02:02]} 39. Qxg3 {[%clk 0:01:03]} 39... c4 {[%clk 0:02:04]} 40. Rxf4 {[%clk
0:00:59]} 40... Ref6 {[%clk 0:01:53]} 41. Bxf6 {[%clk 0:01:23]} 1-0

[Variant "Standard"]
[Site "Europe Echecs"]